Cogmind - Beta 11.1 @@@ ROGUE MODE // 2022.05.01 @ 04:12:33 Player: Olga Result: Self-destructed Performance ------------- Evolutions (3) 1500 Regions Visited (4) 800 Robots Destroyed (5) 25 Value Destroyed (84) 84 Prototype IDs (0) 0 Alien Tech Used (0) 0 Bonus (0) 0 TOTAL SCORE: 2409 Bonus ------- None Cogmind --------- Core Integrity 432/700 Matter 155/300 Energy 100/100 System Corruption 0% Temperature Cool (1) Movement Flying (35) Location -7/Factory Parts ------- > --- POWER (1) -------- (None) > --- PROPULSION (4) --- VTOL Module > --- UTILITY (6) ------ Advanced Visual Processing Unit Terrain Scanner Terrain Scan Processor Corruption Screen Corruption Screen > --- WEAPON (2) ------- (None) > --- INVENTORY (5) ---- Small Storage Unit Sensor Array Light Armor Plating Peak State ------------ > --- POWER ------------ (None) > --- PROPULSION ------- Flight Unit Flight Unit > --- UTILITY ---------- Advanced Visual Processing Unit Terrain Scanner Terrain Scan Processor Corruption Screen Corruption Screen > --- WEAPON ----------- Assault Cannon Scythe > --- INVENTORY -------- Small Storage Unit Sensor Array Light Armor Plating [Rating: 22] Favorites ----------- Power Light Ion Engine Engine Light Ion Engine Propulsion Flight Unit Treads Light Treads Leg Aluminum Leg Wheel Wheel Flight Unit Flight Unit Utility Terrain Scanner Device Terrain Scanner Storage Small Storage Unit Processor Corruption Screen Weapon Light Assault Rifle Energy Gun EM Pulse Gun Ballistic Gun Light Assault Rifle Ballistic Cannon Assault Cannon Slashing Weapon Scythe Build | -11 -10 -9 -8 -7 ------- Run | Scr Mat Mat Mat Fac Slots Evolved 6 | . . 2 2 2 Power . | . . . . . Propulsion 2 | . . 1 1 . Utility 4 | . . 1 1 2 Weapon . | . . . . . Parts Attached 24 | 3 7 4 5 5 Power 1 | . . 1 . . Engine 1 | . . 1 . . Core . | . . . . . Reactor . | . . . . . Propulsion 11 | 2 5 1 . 3 Treads 2 | 2 . . . . Leg . | . . . . . Wheel 2 | . 2 . . . Hover . | . . . . . Flight 7 | . 3 1 . 3 Utility 8 | . 2 2 2 2 Device 3 | . 2 1 . . Storage 1 | . . 1 . . Processor 4 | . . . 2 2 Hackware . | . . . . . Protection . | . . . . . Artifact . | . . . . . Weapon 4 | 1 . . 3 . Energy Gun . | . . . . . Energy Cannon . | . . . . . Ballistic Gun 1 | 1 . . . . Ballistic Cannon 2 | . . . 2 . Launcher . | . . . . . Special Weapon . | . . . . . Impact Weapon . | . . . . . Slashing Weapon 1 | . . . 1 . Piercing Weapon . | . . . . . Special Melee Weapon . | . . . . . Unidentified Prototypes . | . . . . . Parts Lost 8 | . . 1 2 5 Power 1 | . . . 1 . Propulsion 5 | . . 1 . 4 Utility 1 | . . . 1 . Weapon 1 | . . . . 1 Highest Loss Streak 5 | . . 1 2 5 To Critical Strikes . | . . . . . Average Slot Usage (%) 67 | . 66 83 64 59 Engine 3 | . . 9 3 . Treads 2 | . 10 . . . Wheel 3 | . 12 . . . Flight 15 | . 3 31 18 10 Device 16 | . 23 22 14 7 Storage 1 | . . 9 . . Processor 11 | . . . 13 30 Ballistic Gun 7 | . 15 11 5 . Ballistic Cannon 1 | . . . 2 3 Slashing Weapon 3 | . . . 6 6 Naked Turns . | . . . . . Heaviest Build 11 | 3 4 11 8 8 Greatest Support 20 | 3 20 12 8 8 Greatest Overweight (x) 1 | . 1 . . . Average Overweight (x) . | . . . . . Largest Inventory Capacity 8 | 8 5 8 5 5 Average Capacity 5 | 7 5 7 5 5 Most Carried 6 | 6 5 5 5 4 Average Carried 4 | 4 4 2 4 3 Final Capacity 5 | 5 5 5 5 5 Final Carried 5 | 4 5 5 5 3 Class Distribution -------------------- 91% | Mutant 8% | Scout Dominant Class ---------------- Mutant | -10/Materials Mutant | -9/Materials Mutant | -8/Materials Scout | -7/Factory Resources | -11 -10 -9 -8 -7 ----------- Run | Scr Mat Mat Mat Fac Matter Collected 270 | 202 47 . . 21 Remotely . | . . . . . Salvage Created 95 | . 47 . . 48 Parts 11 | . 5 . . 6 Haulers Intercepted . | . . . . . Recyclers Shooed . | . . . . . Parts Field Recycled . | . . . . . Retrieved Matter . | . . . . . Parts Self-Destructed . | . . . . . Prevented . | . . . . . Kills | -11 -10 -9 -8 -7 ------- Run | Scr Mat Mat Mat Fac Combat Hostiles Destroyed 5 | . 3 . . 2 Melee 2 | . . . . 2 Guns 3 | . 3 . . . Classes Destroyed 1 | . 1 . . . Swarmer 5 | . 3 . . 2 Best Kill Streak 3 | . 3 . . 2 Combat Bots Only 3 | . 3 . . 2 Max Kills in Single Turn 1 | . 1 . . 1 Gunslinging . | . . . . . Exploded . | . . . . . Melee 1 | . . . . 1 Uniques/NPCs Destroyed . | . . . . . Combat | -11 -10 -9 -8 -7 -------- Run | Scr Mat Mat Mat Fac Damage Taken 858 | . 149 107 152 450 Core 464 | . 59 42 95 268 Absorbed by Shields . | . . . . . Core Remaining (%) 86 | 100 76 89 82 . Volleys Fired 16 | . 14 . 2 . Largest 1 | . 1 . 1 . Hottest 44 | . 20 . 44 . Shots Fired 16 | . 14 . 2 . Gun 15 | . 14 . 1 . Cannon 1 | . . . 1 . Launcher . | . . . . . Special . | . . . . . Kinetic 16 | . 14 . 2 . Thermal . | . . . . . Explosive . | . . . . . Electromagnetic . | . . . . . Robot Hit Streak 6 | . 6 . . . Robot Miss Streak 3 | . 3 . . . Penetration Max . | . . . . . Secondary Targets . | . . . . . Shots Hit Robots 14 | . 10 . . 4 Core Hits 7 | . 5 . . 2 Critical Kills . | . . . . . Critical Parts Destroyed 1 | . 1 . . . Critical Strikes 1 | . 1 . . . Destroy 1 | . 1 . . . Melee Attacks 13 | . . . 7 6 Impact . | . . . . . Slashing 13 | . . . 7 6 Piercing . | . . . . . Sneak Attacks . | . . . . . Combat Hostiles . | . . . . . Follow-up Attacks . | . . . . . Damage Inflicted 210 | . 84 . . 126 Guns 84 | . 84 . . . Cannons . | . . . . . Explosions . | . . . . . Melee 126 | . . . . 126 Ramming . | . . . . . Kinetic 84 | . 84 . . . Thermal . | . . . . . Explosive . | . . . . . Electromagnetic . | . . . . . Impact . | . . . . . Slashing 126 | . . . . 126 Piercing . | . . . . . Highest Corruption . | . . . . . Average Corruption . | . . . . . Corruption Purged . | . . . . . Corruption Blocked 1 | . . . 1 . Overload Shots . | . . . . . Overflow Damage 8 | . . . . 8 Projectiles . | . . . . . Explosions . | . . . . . Melee 8 | . . . . 8 Knockbacks . | . . . . . Impact . | . . . . . Kinetic . | . . . . . Secondary . | . . . . . Self-Inflicted Damage . | . . . . . Shots . | . . . . . Rammed 1 | . 1 . . . Targets Rammed 1 | . 1 . . . Kicked . | . . . . . Crushed . | . . . . . Highest Temperature . | . . . . . Average Temperature . | . . . . . Received Heat Transfer 135 | . 48 15 72 . Siege Activations . | . . . . . Robots Corrupted . | . . . . . Combat Hostiles . | . . . . . Parts Fried . | . . . . . Impact Corruptions . | . . . . . Robots Melted . | . . . . . Combat Hostiles . | . . . . . Parts Melted . | . . . . . Heat Transferred . | . . . . . Parts Sabotaged . | . . . . . Parts Stolen . | . . . . . Parts Stripped . | . . . . . Power Chain Reactions . | . . . . . Missiles Intercepted . | . . . . . Alert | -11 -10 -9 -8 -7 ------- Run | Scr Mat Mat Mat Fac Peak Influence 176 | . 124 153 126 176 Initial 59 | . . 52 59 56 Average 81 | . 48 116 74 107 Maximum Alert Level . | . . . . . Low Security (%) 100 | 100 100 100 100 100 Level 1 . | . . . . . Level 2 . | . . . . . Level 3 . | . . . . . Level 4 . | . . . . . Level 5 . | . . . . . High Security . | . . . . . Max Security . | . . . . . Squads Dispatched 3 | . 2 . 1 . Investigation 2 | . 1 . 1 . Extermination . | . . . . . Reinforcement 1 | . 1 . . . Assault . | . . . . . Garrison . | . . . . . Intercept . | . . . . . Searches Triggered . | . . . . . Construction Impeded . | . . . . . Haulers Reinforced . | . . . . . Active Scanning Responses . | . . . . . Cargo Convoy Interrupts . | . . . . . Stealth | -11 -10 -9 -8 -7 --------- Run | Scr Mat Mat Mat Fac Distress Signals 1 | . . . . 1 Communications Jammed . | . . . . . Distress Signals . | . . . . . Times Spotted 31 | . 7 9 6 9 Peak Tracking Total 10 | . 6 10 5 10 Tactical Retreats 4 | . 1 . 2 1 Traps | -11 -10 -9 -8 -7 ------- Run | Scr Mat Mat Mat Fac Traps Triggered . | . . . . . Indirectly . | . . . . . Trap Hack Attempts . | . . . . . Triggered . | . . . . . Disarmed . | . . . . . Reprogrammed . | . . . . . Reused . | . . . . . Traps Extracted . | . . . . . Installed . | . . . . . Triggered . | . . . . . Machines | -11 -10 -9 -8 -7 ---------- Run | Scr Mat Mat Mat Fac Machines Disabled . | . . . . . Max in Single Turn . | . . . . . Machines Sabotaged . | . . . . . Garrisons Compromised . | . . . . . Overloaded Fab Kills . | . . . . . Hacking | -11 -10 -9 -8 -7 --------- Run | Scr Mat Mat Mat Fac Machines Accessed 10 | . 3 4 3 . Terminals 10 | . 3 4 3 . Fabricators . | . . . . . Repair Stations . | . . . . . Recycling Units . | . . . . . Scanalyzers . | . . . . . Garrison Access . | . . . . . Total Hacks 24 | . 8 10 6 . Successful 8 | . 1 6 1 . Failed 16 | . 7 4 5 . Catastrophic 5 | . 2 1 2 . Database Lockouts . | . . . . . Manual 19 | . 5 8 6 . Terminals 24 | . 8 10 6 . Fabricators . | . . . . . Repair Stations . | . . . . . Recycling Units . | . . . . . Scanalyzers . | . . . . . Garrison Access . | . . . . . Terminal Hacks 6 | . 1 4 1 . Level Access Points 2 | . 1 1 . . Branch Access Points 2 | . . 1 1 . Terminal Index 1 | . . 1 . . Zone Layout 1 | . . 1 . . Fabricator Hacks . | . . . . . Repair Station Hacks . | . . . . . Recycling Unit Hacks . | . . . . . Scanalyzer . | . . . . . Garrison Access Hacks . | . . . . . Unauthorized Hacks 2 | . . 2 . . Terminals 2 | . . 2 . . Track 1 | . . 1 . . Assimilate 1 | . . 1 . . Fabricators . | . . . . . Repair Stations . | . . . . . Recycling Units . | . . . . . Scanalyzers . | . . . . . Garrison Access . | . . . . . Data Cores Recovered . | . . . . . Used . | . . . . . Hacking Detections 7 | . 2 3 2 . Full Trace Events 3 | . 2 . 1 . Feedback Events 1 | . . . 1 . Corruption 1 | . . . 1 . Feedback Blocked . | . . . . . Robot Schematics Acquired . | . . . . . Robots Built . | . . . . . Authchips . | . . . . . Time . | . . . . . Total Robot Build Rating . | . . . . . Part Schematics Acquired . | . . . . . Parts Built . | . . . . . Authchips . | . . . . . Time . | . . . . . Total Part Build Rating . | . . . . . Parts Repaired . | . . . . . Time . | . . . . . Parts Recycled . | . . . . . Recycled Matter . | . . . . . Retrieved Matter . | . . . . . Retrieved Components . | . . . . . Parts Scanalyzed . | . . . . . Part Schematics Acquired . | . . . . . Parts Damaged . | . . . . . Bothacking | -11 -10 -9 -8 -7 ------------ Run | Scr Mat Mat Mat Fac Used RIF Installer . | . . . . . Robots Hacked . | . . . . . Non-combat . | . . . . . Combat . | . . . . . Robot Hacks Applied . | . . . . . Relay Couplers Released . | . . . . . Fabnet Peak Effective % . | . . . . . Robots Rewired . | . . . . . Allies Hacked . | . . . . . Hacks Repelled . | . . . . . Allies | -11 -10 -9 -8 -7 -------- Run | Scr Mat Mat Mat Fac Total Allies 1 | . . 1 . . Largest Group 1 | . . 1 . . Highest-Rated Group 10 | . . 10 . . Highest-Rated Ally 10 | . . 10 . . Total Orders . | . . . . . Ally Attacks . | . . . . . Total Damage . | . . . . . Kills . | . . . . . Allies Corrupted . | . . . . . Allies Melted . | . . . . . Intel | -11 -10 -9 -8 -7 ------- Run | Scr Mat Mat Mat Fac Robot Analysis Total . | . . . . . Derelict Logs Recovered . | . . . . . Drone Launches . | . . . . . Drone Recoveries . | . . . . . Exploration | -11 -10 -9 -8 -7 ------------- Run | Scr Mat Mat Mat Fac Turns Passed 375 | 6 91 62 134 82 Spaces Moved 652 | 1 105 153 277 116 Core 59 | 1 51 . . 7 Treads . | . . . . . Legs . | . . . . . Wheels 3 | . 3 . . . Hover . | . . . . . Flight 590 | . 51 153 277 109 Fastest Speed 34 | 50 37 34 37 35 Average Speed 37 | 50 46 34 37 37 Slowest Speed 100 | 50 100 37 37 50 Overloaded Moves . | . . . . . Propulsion Burnouts . | . . . . . Robots Hopped 11 | . 1 6 2 2 Cave-ins Triggered . | . . . . . Exploration Rate (%) 17 | 2 31 23 27 5 Regions Visited 4 Branch Regions . Pre-discovered Areas . | . . . . . Known Exits Taken 2 | . 1 1 . . Unknown Exits Taken 2 | 1 . . 1 . Scrap Searched . | . . . . . Spaces Dug 7 | . . . 7 . Terrain Destroyed 7 | . . . 7 . Melee 6 | . . . 6 . Projectile 1 | . . . 1 . AOE . | . . . . . Terrain Rammed . | . . . . . Walls Destroyed . | . . . . . Machines Disabled . | . . . . . Actions | -11 -10 -9 -8 -7 --------- Run | Scr Mat Mat Mat Fac Total 731 | 8 133 156 292 142 Wait 19 | . 2 1 . 16 Move 626 | . 102 140 272 112 Hop 11 | . 1 6 2 2 Pick Up 6 | . 2 3 1 . Fast Attach 12 | . 4 . 5 3 Attach 9 | 3 1 3 . 2 Detach 2 | 1 . 1 . . Swap 3 | . 2 1 . . Drop 13 | 4 4 1 3 1 Fire 16 | . 14 . 2 . Melee 13 | . . . 7 6 Ram 1 | . 1 . . . Kick . | . . . . . Crush . | . . . . . Escape Stasis . | . . . . . Rewire . | . . . . . Trap . | . . . . . Miscellaneous . | . . . . . Route ------- -11/Scrapyard -10/Materials (discovered 3 exits: *Mat x3) -9/Materials (discovered 6 exits: *Mat x3 / Min x2 / *Sto) -8/Materials -7/Factory History --------- Turn | Location | Event 7 | -11/Scrapyard | Discovered new exit (range 0) 7 | -11/Scrapyard | Entered Materials 44 | -10/Materials | Identified exit to Materials 98 | -10/Materials | Entered another Materials area 98 | -9/Materials | Evolved 2 slots: Propulsion x1, Utility x1 106 | -9/Materials | Identified exit to Mines 106 | -9/Materials | Identified exit to Storage 109 | -9/Materials | Identified exit to Materials 160 | -9/Materials | Entered another Materials area 160 | -8/Materials | Evolved 2 slots: Propulsion x1, Utility x1 284 | -8/Materials | Discovered new exit (range 17) 294 | -8/Materials | Entered Factory 294 | -7/Factory | Evolved 2 slots: Utility x2 376 | -7/Factory | Self-destructed Last Messages --------------- 00330_ ALERT: All DSF locations entering lockdown mode. 00330_ Flight Unit destroyed. 00330_ Dropped Assault Cannon. 00333_ K-01 Serf collects debris. 00336_ Flight Unit destroyed. 00344_ S-27 Virus destroyed. 00344_ K-01 Serf collects debris. 00349_ Acquired VTOL Module. 00351_ S-27 Virus destroyed. 00352_ K-01 Serf collects debris. 00353_ Destroyed VTOL Module. 00355_ VTOL Module destroyed. 00356_ Acquired VTOL Module. 00357_ K-01 Serf collects debris. 00361_ Scythe destroyed. 00363_ Acquired 21 matter. 00364_ Acquired VTOL Module. 00364_ K-01 Serf collects debris. 00364_ VTOL Module destroyed. 00367_ K-01 Serf collects debris. Map ----- +----------------------------------------------------+ | ?????????????? ?############ | | ????????????????? | | ????? ??"???????? ? | | ????????????????? ?? | | ?#??????????????+ ??? | | ???#????????????# ????? | | ???????????? ??# #?????? | | ???#+##+####+#### # ????? | | #??# #?? ??? | | ???# # ????? | | ???# # ?? ?? | | ???# """ #???? ? | | ?#?# """ # ??? | | ???# """ #### #????? | | ???# ##?# # ??? | | ???# #?## # ?? ? | | ???#s##+##+#??# #??? ?? | | ???# # ??# #?????? | | ???# # ## #? ? | | ???# #! ! ## % #? ? | | ???# # #### [* # ??? ? | | ???# # !! #?## [ ####### | | ???# # !! #?## # """ | | ???# # !! #??# + """ | | ??## # #?## # """ | | ???#@#########?## # | | ?? # ?# #? ! | | ?# [! # """" # # | | ?# [! # """" # #??#### | | ?# ! # """" # #??#### | | ?# # """" + #??? | | ?# """ #[ """" # +? ? | | ?# "R # """" # #??"""" | | ?# """ # """" ?# #??"""" | | ?# # ?# #? """" | | ?################ #? """" | | ???? # + | | ???????""""""" ]+ # """" | | ???? # + """" | | ???# = # # """" | | ???#"" # # """" | | ???#"" ![ ## ##? | | ???#"" ![ ## #?? """" | | ???#T [ ## #???"""" | | ???#"" ## #???"""" | | ???#"" ## ## ??""" | | ???#"" # #? ? | | ???# # #????## | | ???#+#####+###### #?????? | | ???#?????????#??# #?????# | +----------------------------------------------------+ Best States ------------- Heat Dissipation 34 Energy Generation 10 Energy Capacity 125 Matter Stores 272 Matter Capacity 300 Sight Range 20 Terrain Scan Range 14 Terrain Scan Density 85 Corruption Block 15 Evasion (%) 63 Item Schematics ----------------- None Robot Schematics ------------------ None Fabricated ------------ Nothing Alien Tech Used ----------------- None Achievements -------------- None Challenges ------------ None Game ------ Seed ImpactLinearCleaver Manual? 0 Play Time 00:12:26 Cumulative 138.2 hours Start 2022.05.01 @ 04:01:36 End 2022.05.01 @ 04:12:33 Sessions 1 Manual Loads 0 Difficulty Rogue Special Mode None Game No. 188 Rogue 187 Adventurer 0 Explorer 1 Win Type - Total 5 Types 5/0/0/0/0/0/0/0/0 Lore% 59 Gallery% 60 Achievement% 50 Wizard Run 0 Options --------- ASCII 1 Keyboard 0 Movement Vi Keybinds 0 Fullscreen 1 Font 18/SmallcapsGlow Map View 76x50 Tactical HUD 1 Map Filters NONE Filters NONE Steam 1 RUN: 61e899a3-b99a-48a8-950f-f3d318489b38